bitfinex/quotes_ETHUSD_20220109
["timestamp","ask_amount","ask_price","bid_price","bid_amount"]
[1641702116607,0.03,3133.5,3133.4,3.76477892]
[1641702116810,1.59626,3134.5,3133.4,3.76477892]
[1641702116811,2.00862407,3136.4,3135.6,0.55016949]
[1641702117010,2.00862407,3136.4,3134.6,0.5]
[1641702117011,0.9389596,3136.8,3135.7,5.908]
[1641702117265,0.8889596,3136.8,3135.8,0.358]
[1641702117458,0.8889596,3136.8,3135.7,0.458]
[1641702117459,2.4841296,3136.8,3135.7,0.458]
[1641702117758,0.8889596,3136.8,3135.7,0.458]
[1641702118057,0.8889596,3136.8,3135.2,3.2]
[1641702118058,3.8889596,3136.8,3135.2,3.2]
[1641702118260,2.3187522,3136.7,3135.2,3.2]
[1641702118460,1.6865096,3136.8,3135.3,2.3687522]
[1641702118659,43.75613099,3136.1,3135.2,3.2]
[1641702118862,1.59546,3136.3,3135.3,2.3687522]
[1641702119060,0.3,3136.3,3135.4,5.2]
[1641702119260,0.00113685,3136.2,3135.5,2.3687522]
[1641702119560,0.00113685,3136.2,3135.6,0.00227369]
[1641702119960,0.00113685,3136.2,3135.2,3.2]
[1641702119961,0.00113685,3136.2,3135.3,0.00397896]
[1641702120161,1.0,3136.1,3135.2,3.15397896]
[1641702120360,3.38210331,3136.0,3135.2,3.15397896]
[1641702120562,3.98608227,3136.0,3135.2,3.15397896]
[1641702120758,0.00341054,3135.9,3135.2,3.15397896]
[1641702121009,0.758,3135.8,3135.2,3.15397896]
[1641702121210,0.76084211,3135.8,3135.2,3.15397896]
[1641702121413,2.60610369,3135.8,3135.2,3.15397896]
[1641702121812,5.0,3135.7,3135.3,0.00227369]
[1641702122011,0.458,3135.6,3135.3,0.00227369]
[1641702122412,0.408,3135.6,3135.3,0.00227369]
[1641702122613,0.3,3135.6,3135.3,0.00227369]
[1641702122813,0.79791,3135.9,3135.3,0.00227369]
[1641702123014,1.59583,3135.8,3135.3,0.00227369]
[1641702123815,1.54583,3135.8,3135.3,0.00227369]
[1641702124217,1.84583,3135.8,3135.3,0.00227369]
[1641702124417,1.79583,3135.8,3135.3,0.00227369]
[1641702126665,5.53624666,3135.7,3135.3,0.00227369]
[1641702126964,11.45227,3135.7,3135.3,0.00227369]
[1641702127962,8.0,3135.6,3135.3,0.00227369]
[1641702128161,0.458,3135.5,3135.3,0.00227369]
[1641702128361,8.0,3135.4,3135.3,0.00227369]
[1641702128616,9.09804,3135.4,3135.3,0.00227369]
[1641702129013,1.9,3135.3,3135.2,3.15397896]
[1641702129219,1.09804,3135.4,3135.2,3.15397896]
[1641702129714,3.1923,3135.7,3135.2,3.15397896]
[1641702129715,4.0,3135.3,3135.2,3.15397896]
[1641702130116,0.00113684,3135.5,3135.2,3.15397896]
[1641702132017,0.30113684,3135.5,3135.2,3.15397896]
[1641702132266,0.30113684,3135.5,3135.2,4.70709505]
[1641702132862,0.00113684,3135.5,3135.2,4.70709505]
[1641702133062,0.00113684,3135.5,3135.2,3.15397896]
[1641702133263,0.96153791,3135.8,3135.3,3.27065205]
[1641702133464,1.25575,3135.9,3135.3,0.52178889]
[1641702133465,1.55575,3135.9,3135.3,0.52178889]
[1641702133763,1.55575,3135.9,3135.3,1.55425293]
[1641702133764,0.00113685,3135.7,3135.3,1.55425293]
[1641702134763,0.79775,3135.9,3135.8,5.45138281]
[1641702134965,0.64695969,3136.8,3135.9,0.61720741]
[1641702135264,0.00113685,3135.9,3135.8,5.45]
[1641702135463,0.00113685,3135.9,3135.4,0.00170527]
[1641702135862,0.64695969,3136.8,3135.5,5.15]
[1641702136312,1.59985739,3136.7,3135.6,0.00170527]
[1641702136712,0.00397896,3136.6,3135.8,1.52905109]
[1641702137115,0.00341054,3136.5,3135.8,2.82958954]
[1641702137312,0.80099054,3136.5,3135.8,2.82958954]
[1641702137512,0.80099054,3136.5,3136.1,1.52905109]
[1641702137513,0.00284212,3136.4,3136.1,1.52905109]
[1641702137913,0.00227369,3136.3,3136.1,1.52905109]
[1641702138313,0.00227369,3136.3,3135.9,0.54955442]
[1641702138314,0.00170527,3136.2,3136.0,1.52905109]
[1641702138714,0.00113684,3136.1,3136.0,1.52905109]
[1641702138914,0.74871684,3136.5,3136.0,1.52905109]
[1641702139114,0.74871684,3136.5,3135.9,0.54955442]
[1641702139316,0.00170528,3136.4,3135.8,1.52905109]
[1641702139515,0.16825697,3136.4,3135.8,1.52905109]
[1641702139766,0.00113685,3136.3,3135.9,0.00113684]
[1641702140157,0.16768495,3136.3,3135.9,0.00113684]
[1641702140358,0.16768495,3136.3,3135.8,0.00170527]
[1641702140558,0.00113685,3136.3,3135.8,0.00170527]
[1641702141359,0.00113685,3136.3,3135.7,0.00227369]
[1641702142061,0.00113685,3136.3,3136.1,0.5123242]
[1641702142366,0.00113685,3136.3,3136.1,1.2908242]
[1641702142562,0.00113685,3136.3,3136.1,1.0785]
[1641702142563,3.685e-05,3136.3,3136.1,1.0785]
[1641702142759,0.64695969,3136.8,3136.7,3.65]
[1641702143709,0.64695969,3136.8,3136.7,4.19679841]
[1641702144508,0.64695969,3136.8,3136.7,5.99679841]
[1641702144710,0.64695969,3136.8,3136.7,4.19679841]
[1641702145012,6.16,3137.8,3136.5,0.01220566]
[1641702145210,1.59471,3137.7,3136.5,0.01220566]
[1641702145409,0.0022737,3136.7,3136.0,3.6003]
[1641702145810,0.00170527,3136.6,3136.1,0.00113685]
[1641702146108,0.00113685,3136.5,3136.1,0.00113685]
[1641702146308,2.91244857,3137.7,3136.2,4.59691343]
[1641702146509,2.91244857,3137.7,3136.2,4.0]
[1641702146510,6.0,3137.6,3136.2,4.0]
[1641702146710,0.00568423,3137.5,3136.3,0.00113685]
[1641702147111,0.80255581,3137.4,3136.3,0.00113685]
[1641702147559,0.00454739,3137.3,3136.3,0.00113685]
[1641702147955,0.00454739,3137.3,3136.5,3.95]
[1641702147956,1.59489,3137.3,3136.5,3.95]
[1641702148156,1.59489,3137.3,3136.4,1.19181909]
[1641702148455,1.59489,3137.3,3136.5,0.00397896]
[1641702148658,0.75141896,3137.4,3136.5,0.00397896]
[1641702148856,0.75141896,3137.4,3136.4,0.00454738]
[1641702149158,0.458,3138.3,3136.4,0.00454738]
[1641702149159,12.2749,3138.4,3136.5,0.01286996]
[1641702149359,6.86,3138.4,3136.5,3.22956112]
[1641702149558,0.0022737,3137.6,3136.6,0.00341054]
[1641702149764,0.0022737,3137.6,3136.8,0.79714]
[1641702150061,0.458,3138.7,3136.8,0.79714]
[1641702150062,0.00170527,3137.5,3136.9,0.00170527]
[1641702150460,0.00113685,3137.4,3136.9,0.00170527]
[1641702150862,1.59444,3138.1,3136.9,0.00170527]
[1641702151111,1.59444,3138.1,3136.7,2.48421743]
[1641702151318,2.92650601,3138.5,3138.2,2.14764145]
[1641702151513,2.92650601,3138.5,3136.8,1.95227369]
[1641702151514,40.23515961,3137.7,3136.8,1.95227369]
[1641702151712,40.23515961,3137.7,3136.8,1.95682108]
[1641702151713,40.18515961,3137.7,3136.8,1.95682108]
[1641702151915,40.18515961,3137.7,3136.9,0.00625266]
[1641702152513,40.18515961,3137.7,3136.7,0.0073895]
[1641702152717,32.94052908,3137.7,3136.6,0.00795793]
[1641702153715,0.79726,3137.6,3136.6,0.00795793]
[1641702154863,0.79726,3137.6,3136.5,0.00852635]
[1641702155062,0.79726,3137.6,3136.6,0.6752185]
[1641702155268,0.79726,3137.6,3136.7,2.14933969]
[1641702155462,0.79726,3137.6,3136.7,2.15672919]
[1641702155663,0.79726,3137.6,3136.8,0.00682108]
[1641702156963,0.79726,3137.6,3136.6,0.00795793]
[1641702157564,0.79726,3137.6,3136.8,1.52905109]
[1641702157768,1.59457,3138.3,3137.0,3.25]
[1641702157965,1.59457,3138.3,3136.9,2.28416987]
[1641702157966,1.59457,3138.3,3137.1,5.68484839]
[1641702158267,0.00113685,3138.2,3137.2,0.00454739]
[1641702158513,48.3989336,3137.7,3137.2,1.98499706]
[1641702158714,48.3989336,3137.7,3137.2,0.00454739]
[1641702158914,1.59465,3137.6,3137.5,1.54349297]
[1641702159412,1.59465,3137.6,3137.5,1.54633509]
[1641702159811,43.5467367,3137.7,3137.5,1.54633509]
[1641702160212,43.5467367,3137.7,3137.6,0.00227369]
[1641702160814,43.5467367,3137.7,3137.4,0.00341054]
[1641702161213,43.5467367,3137.7,3137.4,1.54690351]
[1641702161613,43.5467367,3137.7,3137.5,0.00284212]
[1641702162964,43.5467367,3137.7,3137.5,1.54633509]
[1641702163162,43.5467367,3137.7,3136.7,3.8667]
[1641702163360,43.8467367,3137.7,3136.7,3.8667]
[1641702163559,43.8467367,3137.7,3136.8,0.00397896]
[1641702163560,0.7975,3137.5,3136.8,0.00397896]
[1641702164262,0.7975,3137.5,3136.8,2.04320592]
[1641702164560,0.7975,3137.5,3136.9,0.00341054]
[1641702167615,0.00113685,3138.2,3137.0,5.45]
[1641702167816,0.00113685,3138.2,3137.1,2.34595589]
[1641702168016,0.00341054,3138.1,3137.1,0.00227369]
[1641702168318,0.00341054,3138.1,3136.9,0.00341054]
[1641702168319,0.00284212,3138.0,3136.9,0.00341054]
[1641702168515,0.46084212,3138.0,3136.9,0.00341054]
[1641702168716,0.0022737,3137.9,3136.9,0.00341054]
[1641702169115,37.8855017,3137.8,3136.9,0.00341054]
[1641702169315,0.79739,3137.5,3136.9,0.00341054]
[1641702170865,0.74739,3137.5,3136.9,0.00341054]
[1641702171462,1.74739,3137.5,3136.9,0.00341054]
[1641702171662,0.74739,3137.5,3136.9,0.00341054]
[1641702173708,1.74739,3137.5,3136.9,0.00341054]
[1641702175908,0.74739,3137.5,3136.8,2.05767482]
[1641702176112,0.00284212,3137.4,3136.8,2.05767482]
[1641702176310,0.79733,3137.3,3136.8,2.05767482]
[1641702176513,0.7996037,3137.3,3136.8,2.05767482]
[1641702176711,0.00170527,3137.2,3136.8,2.05767482]
[1641702177109,0.00113685,3137.1,3136.8,2.05767482]
[1641702177664,0.7995837,3137.3,3136.8,2.05767482]
[1641702178063,0.00170527,3137.2,3136.8,2.05767482]
[1641702178564,0.00113685,3137.1,3136.8,2.05767482]
[1641702178866,0.0022737,3137.3,3136.8,2.05767482]
[1641702179065,0.7995837,3137.3,3136.8,2.05767482]
[1641702179265,0.00170527,3137.2,3136.8,2.05767482]
[1641702179666,0.00113685,3137.1,3136.8,2.05767482]
[1641702180067,0.79732,3137.1,3136.8,2.05767482]
[1641702181111,0.79732,3137.1,3136.7,3.2]
[1641702184119,0.7620331,3137.2,3136.8,3.25]
[1641702184516,0.00113685,3137.1,3136.8,3.25]
[1641702184962,0.79845685,3137.1,3136.7,3.2]
[1641702202569,0.79845685,3137.1,3136.8,0.67392737]
[1641702202765,0.79845685,3137.1,3136.7,3.9972929]
[1641702204915,0.79845685,3137.1,3136.7,3.2]
[1641702206819,0.79845685,3137.1,3136.9,0.61046814]
[1641702207020,0.79845685,3137.1,3137.0,4.8]
[1641702207870,0.79845685,3137.1,3137.0,6.95783499]
[1641702208270,0.79845685,3137.1,3137.0,4.8]
[1641702208873,0.79845685,3137.1,3137.0,5.5972402]
[1641702209070,0.79845685,3137.1,3137.0,7.75444032]
[1641702209272,0.79845685,3137.1,3137.0,8.84218148]
[1641702210670,0.79845685,3137.1,3137.0,6.68498136]
[1641702210870,0.79845685,3137.1,3137.0,1.88498136]
[1641702211417,0.79845685,3137.1,3137.0,0.7972402]
[1641702213517,0.79845685,3137.1,3137.0,7.1376477]
[1641702213718,0.00113685,3137.1,3137.0,7.1376477]
[1641702214221,0.00113685,3137.1,3136.7,3.2]
[1641702214419,1.59457,3137.3,3136.7,3.2]
[1641702215672,1.59457,3137.3,3136.9,0.6241568]
[1641702217175,1.59457,3137.3,3136.7,3.2]
[1641702218077,1.59457,3137.3,3136.7,4.34057137]
[1641702218272,1.59457,3137.3,3137.0,0.58098615]
[1641702220021,1.59457,3137.3,3136.7,4.34057137]
[1641702220823,1.59457,3137.3,3136.8,0.797255]
[1641702221124,1.59457,3137.3,3136.9,0.6832255]
[1641702221522,1.59457,3137.3,3136.7,5.93498357]
[1641702221723,1.59457,3137.3,3136.7,3.2]
[1641702221923,1.59457,3137.3,3136.7,4.74877729]
[1641702222122,2.59457,3137.3,3136.7,4.74877729]
[1641702222574,2.59457,3137.3,3136.7,3.2]
[1641702223673,2.89457,3137.3,3136.7,3.2]
[1641702224673,1.26466995,3137.3,3136.7,3.2]
[1641702225475,0.26466995,3137.3,3136.7,3.2]
[1641702225676,1.26466995,3137.3,3136.7,3.2]
[1641702225881,0.26466995,3137.3,3136.7,3.2]
[1641702226116,1.26466995,3137.3,3136.7,3.2]
[1641702226314,1.56466995,3137.3,3136.7,3.2]
[1641702226516,0.56466995,3137.3,3136.7,3.2]
[1641702226815,1.56466995,3137.3,3136.7,3.2]
[1641702227215,0.56466995,3137.3,3136.7,3.2]
[1641702227417,1.56466995,3137.3,3136.7,3.2]
[1641702227816,0.56466995,3137.3,3136.7,3.2]
[1641702228420,0.79752,3137.1,3136.7,3.2]
[1641702228618,0.458,3137.0,3136.7,3.2]
[1641702229017,0.758,3137.0,3136.7,3.2]
[1641702229216,0.758,3137.0,3136.0,1.54877729]
[1641702229217,5.79532,3136.9,3136.0,1.54877729]
[1641702229418,0.458,3136.8,3136.0,1.54877729]
[1641702229783,0.458,3136.8,3136.1,0.00454739]
[1641702229784,3.05332,3136.8,3136.1,0.00454739]
[1641702229973,1.25566,3136.8,3136.1,0.00454739]
[1641702230170,1.25566,3136.8,3135.8,0.01237162]
[1641702230171,1.25566,3136.8,3135.8,0.80982162]
[1641702230371,1.25566,3136.8,3135.9,2.35300647]
[1641702230772,2.05318,3136.8,3136.0,0.00511581]
[1641702231175,3.05318,3136.8,3136.0,0.00511581]
[1641702231371,3.35318,3136.8,3135.9,0.00568423]
[1641702231570,3.0,3136.7,3135.8,0.00625266]
[1641702231773,0.458,3136.6,3135.8,0.00625266]
[1641702231970,2.25575,3136.6,3135.8,0.00625266]
[1641702232172,2.55575,3136.6,3135.5,0.00795793]
[1641702232373,2.4,3136.5,3135.4,1.50616679]
[1641702232572,0.7977,3136.4,3135.3,2.02748602]
[1641702232871,2.39705896,3136.3,3135.4,0.00113685]
[1641702233271,0.00341054,3136.2,3135.3,0.00170527]
[1641702233719,0.00284211,3136.1,3135.3,2.03621657]
[1641702233916,0.00284211,3136.1,3135.3,0.00170527]
[1641702234118,0.00227369,3136.0,3135.3,0.00170527]
[1641702234516,0.00170527,3135.9,3135.3,0.00170527]
[1641702234717,1.59706527,3135.9,3135.3,0.00170527]
[1641702234919,0.00113684,3135.8,3135.3,0.00170527]
[1641702235921,0.79881684,3135.8,3135.3,2.04698449]
[1641702236122,0.79881684,3135.8,3135.6,0.50659048]
[1641702236920,0.79881684,3135.8,3135.7,4.351572]
[1641702237120,0.79881684,3135.8,3135.7,4.35952633]
[1641702237376,0.79881684,3135.8,3135.7,4.38126643]
[1641702238175,0.79881684,3135.8,3135.7,2.35]
[1641702238975,1.59536,3135.9,3135.8,2.45]
[1641702239177,0.83283309,3136.3,3135.8,2.45]
[1641702239474,0.00170527,3136.1,3135.8,2.45]
[1641702239675,0.79757,3136.0,3135.8,2.45]
[1641702239975,0.79870685,3136.0,3135.7,5.2231137]
[1641702240776,0.79870685,3136.0,3135.7,3.2]
[1641702242220,0.79870685,3136.0,3135.7,5.21444687]
[1641702243020,0.79870685,3136.0,3135.8,0.54739134]
[1641702243222,0.00113685,3136.0,3135.9,4.69283576]
[1641702243522,0.47577366,3136.9,3135.9,4.69283576]
[1641702243523,5.1504562,3137.6,3137.1,0.54881831]
[1641702243722,0.7973562,3137.6,3136.1,10.94973632]
[1641702243926,0.00113685,3136.2,3136.1,10.94973632]
[1641702244123,0.00113685,3136.2,3136.1,12.33626429]
[1641702244522,0.00113685,3136.2,3136.1,13.13361429]
[1641702244968,0.00113685,3136.2,3136.1,13.83639648]
[1641702245171,0.00113685,3136.2,3136.1,5.67879648]
[1641702245970,0.00113685,3136.2,3136.1,7.23495047]
[1641702246772,0.00113685,3136.2,3136.1,5.67879648]
[1641702247473,0.00113685,3136.2,3136.1,7.87879648]
[1641702248520,0.00113685,3136.2,3136.1,8.17879648]
[1641702250523,0.00113685,3136.2,3136.1,5.97879648]
[1641702251324,0.00113685,3136.2,3136.1,8.37879648]
[1641702252124,0.7973,3136.8,3136.3,0.79729]
[1641702252384,0.7973,3136.8,3136.7,0.65831005]
[1641702252583,0.7973,3136.8,3136.7,2.77658507]
[1641702253282,0.79725,3137.0,3136.7,2.77658507]
[1641702253485,5.4197859,3137.9,3136.9,0.7972193]
[1641702253486,1.0,3137.9,3136.9,0.7972193]
[1641702253681,0.00682108,3137.4,3137.3,0.56311764]
[1641702254885,0.80401108,3137.4,3137.3,0.56311764]
[1641702255285,0.80401108,3137.4,3137.2,2.01273442]
[1641702255690,0.00625266,3137.3,3137.2,2.01273442]
[1641702256319,0.00625266,3137.3,3137.2,8.79430905]
[1641702257121,1.59406,3138.7,3138.4,0.66490858]
[1641702257322,6.29819997,3139.0,3138.1,1.01180023]
[1641702257520,0.00682108,3138.5,3138.1,1.01180023]
[1641702257921,6.29819997,3139.0,3138.1,1.01180023]
[1641702257922,0.00625265,3138.4,3138.1,1.01180023]
[1641702258321,0.00568423,3138.3,3138.2,2.00408679]
[1641702258520,0.00568423,3138.3,3138.2,2.01748043]
[1641702258720,0.00568423,3138.3,3138.2,2.57666562]
[1641702258920,0.00568423,3138.3,3138.2,0.55918519]
[1641702260371,4.06782917,3137.9,3136.7,14.79633061]
[1641702260571,0.00568423,3138.3,3137.2,1.55811512]
[1641702260572,2.20929555,3137.4,3137.2,1.55811512]
[1641702260771,0.79739,3137.3,3137.2,1.55811512]
[1641702260971,0.79739,3137.3,3137.2,0.61564213]
[1641702260972,3.19739,3137.3,3137.2,0.61564213]
[1641702261170,1.85280943,3137.3,3136.8,5.46286061]
[1641702261570,1.85280943,3137.3,3136.9,0.0022737]
[1641702261770,0.85280943,3137.3,3136.9,0.0022737]
[1641702261974,1.85280943,3137.3,3136.9,0.0022737]
[1641702262170,2.15280943,3137.3,3136.9,0.0022737]
[1641702262371,2.15280943,3137.3,3136.8,0.00284212]
[1641702263923,2.15280943,3137.3,3136.0,0.57288448]
[1641702263924,6.2976,3137.1,3135.8,3.607]
[1641702264125,4.56701165,3137.0,3135.8,3.607]
[1641702264325,5.22372785,3137.0,3135.9,0.00511581]
[1641702264530,3.0,3136.8,3135.9,0.00511581]
[1641702264731,3.924123,3136.7,3135.9,0.00511581]
[1641702264925,8.0,3136.6,3135.3,0.00852635]
[1641702265126,2.3934255,3136.4,3135.1,0.0096632]
[1641702265328,3.39553242,3136.3,3135.1,0.0096632]
[1641702265526,1.0,3136.2,3135.1,0.0096632]
[1641702265727,2.68603884,3136.1,3135.1,0.0096632]
[1641702265929,0.458,3136.0,3135.1,0.0096632]
[1641702266130,1.758,3136.0,3135.1,0.0096632]
[1641702266329,0.05557935,3135.9,3135.1,0.0096632]
[1641702266628,2.10927105,3135.9,3135.1,0.0096632]
[1641702266831,0.79785,3135.8,3135.1,0.0096632]
[1641702267370,1.79785,3135.8,3135.1,0.0096632]
[1641702267569,1.87751,3135.8,3134.7,0.01193689]
[1641702268969,1.79785,3135.8,3134.7,0.01193689]
[1641702270269,1.79785,3135.8,3134.7,3.21193689]
[1641702270668,1.79785,3135.8,3134.8,0.01136847]
[1641702272332,2.69755359,3135.7,3134.8,0.01136847]
[1641702272529,0.458,3135.6,3134.8,0.01136847]
[1641702272730,2.25591,3135.6,3134.8,0.01136847]
[1641702273531,2.55591,3135.6,3134.8,0.01136847]
[1641702273929,0.07967,3135.5,3134.8,0.01136847]
[1641702274977,2.74777482,3135.5,3134.8,0.01136847]
[1641702275177,3.39398,3135.4,3134.8,0.01136847]
[1641702275374,0.07967,3135.3,3134.8,0.01136847]
[1641702275574,0.798,3135.2,3134.8,0.01136847]
[1641702276574,1.798,3135.2,3134.8,0.01136847]
[1641702277673,2.256,3135.2,3134.8,0.01136847]
[1641702277874,2.256,3135.2,3134.7,2.96943294]
[1641702278075,0.00170527,3135.1,3134.7,2.96943294]
[1641702278275,0.7979493,3135.0,3134.7,2.96943294]
[1641702278533,0.79793,3134.9,3134.7,2.96943294]
[1641702278721,0.79793,3134.9,3134.7,4.22086111]
[1641702278920,0.79793,3134.9,3134.7,2.96943294]
[1641702279521,1.59698685,3135.0,3134.9,1.59586]
[1641702279721,1.59698685,3135.0,3134.7,2.96943294]
[1641702280921,0.79793,3134.9,3134.7,2.96943294]
[1641702289025,1.6755687,3134.9,3134.7,2.96943294]
[1641702289426,2.6755687,3134.9,3134.7,2.96943294]
[1641702290276,2.5958987,3134.9,3134.7,2.96943294]
[1641702294925,2.39495685,3135.0,3134.7,2.96943294]
[1641702295728,0.7979886,3134.9,3134.7,2.96943294]
[1641702295931,1.5959186,3134.9,3134.7,2.96943294]
[1641702296128,2.42905378,3134.9,3134.7,2.96943294]
[1641702296327,3.42905378,3134.9,3134.7,2.96943294]
[1641702297128,3.50872378,3134.9,3134.7,2.96943294]
[1641702297374,5.10480378,3134.9,3134.7,2.96943294]
[1641702297774,4.10480378,3134.9,3134.7,2.96943294]
[1641702297972,4.02513378,3134.9,3134.7,2.96943294]
[1641702298374,1.0,3134.8,3134.7,2.96943294]
[1641702299973,1.0,3134.8,3134.6,0.5]
[1641702299974,0.3,3134.7,3134.6,0.5]
[1641702300174,4.35046897,3134.7,3134.6,0.5]
[1641702300475,0.79818,3134.4,3133.9,1.55325219]
[1641702300673,0.7981863,3134.2,3133.9,1.55325219]
[1641702300873,0.7981863,3134.2,3134.0,0.00341054]
[1641702301325,1.2562,3134.1,3133.3,3.8772]
[1641702301527,3.28811015,3134.1,3132.9,4.06305435]
[1641702301724,0.85388975,3134.0,3133.5,1.5556056]
[1641702301926,0.53772,3133.9,3132.6,17.33625435]
[1641702302124,1.19614147,3133.9,3132.6,17.33625435]
[1641702302322,0.0022737,3133.8,3132.7,0.00397896]
[1641702302523,0.83774,3133.7,3133.4,6.16]
[1641702302725,0.89502462,3133.7,3133.4,6.16]
[1641702302924,0.00113685,3133.6,3132.7,0.00397896]
[1641702303126,0.5147162,3133.6,3132.7,0.00397896]
[1641702303325,0.05557935,3133.5,3132.7,0.00397896]
[1641702303728,3.9921616,3133.3,3132.7,0.00397896]
[1641702303925,0.79847,3133.2,3132.7,0.00397896]
[1641702304126,0.79845,3133.0,3132.7,0.00397896]
[1641702304326,0.79845,3133.0,3132.6,0.00454739]
[1641702304774,1.59689,3132.8,3132.6,0.00454739]
[1641702304978,1.56221334,3132.9,3132.7,2.85]
[1641702305178,0.79843,3132.9,3132.7,9.01]
[1641702305380,0.79843,3132.9,3132.8,0.00341054]
[1641702306178,1.58643204,3133.3,3132.8,0.00341054]
[1641702306382,0.7984185,3133.1,3132.8,0.00341054]
[1641702307080,0.79842,3133.0,3132.8,0.00341054]
[1641702307278,2e-05,3133.0,3132.8,0.00341054]
[1641702307480,0.05557935,3133.9,3132.9,5.5]
[1641702307680,1.7023,3134.6,3133.5,5.51269043]
[1641702307885,0.05557935,3134.3,3133.5,5.51269043]
[1641702308282,0.79924685,3133.6,3133.5,5.51269043]
[1641702308722,0.79924685,3133.6,3133.5,0.01269043]
[1641702309523,0.79924685,3133.6,3133.5,2.15996453]
[1641702309724,0.79924685,3133.6,3133.5,2.14510252]
[1641702310225,0.69757814,3134.3,3133.6,2.3]
[1641702310425,0.05557935,3134.2,3133.6,2.3]
[1641702310625,0.00284212,3134.1,3133.6,2.3]
[1641702310826,0.80100212,3134.1,3133.6,2.3]
[1641702311026,0.00227369,3134.0,3133.7,2.07220714]
[1641702311529,0.00170527,3133.9,3133.7,2.07220714]
[1641702311726,0.00170527,3133.9,3133.8,4.58595994]
[1641702311925,1.59632,3134.2,3133.8,4.58595994]
[1641702312126,0.79802,3133.9,3133.5,0.01269043]
[1641702313973,0.79802,3133.9,3133.7,1.37262349]
[1641702314872,0.79802,3133.9,3133.5,0.01269043]
[1641702315073,0.79802,3133.9,3133.2,3.90974631]
[1641702315273,0.79802,3133.9,3133.3,2.088923]
[1641702315474,0.79802,3133.9,3133.3,0.00170527]
[1641702315675,0.79802,3133.9,3133.4,0.00113685]
[1641702316031,0.79802,3133.9,3133.4,1.39151506]
[1641702316227,0.79802,3133.9,3133.5,2.05973895]
[1641702316429,0.00284212,3134.1,3133.7,0.67441938]
[1641702316629,0.21786997,3134.8,3133.8,2.77894237]
[1641702316830,0.83313518,3134.9,3133.8,2.78064764]
[1641702317028,0.83313518,3134.9,3133.9,0.00113685]
[1641702317029,0.00341054,3134.7,3133.9,0.00113685]
[1641702317228,0.00341054,3134.7,3134.1,0.79785]
[1641702317430,0.79781,3134.8,3134.6,1.21534116]
[1641702317829,0.80178896,3134.8,3134.7,2.0653772]
[1641702318029,0.80178896,3134.8,3134.3,2.39015452]
[1641702318429,0.00341054,3134.7,3134.3,2.39015452]
[1641702318632,0.79786,3134.6,3134.3,2.39015452]
[1641702318833,0.80070211,3134.6,3134.3,2.39015452]
[1641702319032,0.00227369,3134.5,3134.3,2.39015452]
[1641702319535,0.79786,3134.6,3134.4,6.64214754]
[1641702319775,0.79786,3134.6,3134.5,5.82816775]
[1641702320475,0.79786,3134.6,3134.5,2.22816775]
[1641702320675,0.79786,3134.6,3134.4,1.19214754]
[1641702320976,0.00227369,3134.5,3134.4,1.19214754]
[1641702321675,0.7979,3134.4,3134.1,0.7978467]
[1641702321876,0.7979,3134.4,3134.0,1.59563]
[1641702322079,0.00113684,3134.3,3134.0,1.59563]
[1641702322676,0.00113684,3134.3,3133.9,6.30978015]
[1641702322879,0.79907684,3134.3,3134.2,4.00632838]
[1641702323278,0.79907684,3134.3,3134.2,2.95]
[1641702324726,0.79907684,3134.3,3134.2,4.27885157]
[1641702324924,0.00113684,3134.3,3134.2,4.27885157]
[1641702325724,0.83313518,3134.9,3134.3,3.35]
[1641702326125,0.00113685,3134.5,3134.3,3.35]
[1641702326325,0.79901685,3134.5,3134.3,3.35]
[1641702326826,3.685e-05,3134.5,3134.3,3.35]
[1641702327028,3.685e-05,3134.5,3134.4,7.74989695]
[1641702327280,3.685e-05,3134.5,3134.4,10.21225695]
[1641702327476,3.685e-05,3134.5,3134.4,11.36565695]
[1641702328075,1.67473,3136.2,3134.7,1.59523]
[1641702328076,0.07964,3136.2,3134.7,1.59523]
[1641702328275,0.458,3136.5,3134.8,3.86293383]
[1641702328276,1.07967,3136.4,3134.8,3.86293383]
[1641702328476,0.0073895,3135.8,3135.0,0.79762]
[1641702328677,0.07971,3135.7,3134.8,8.717]
[1641702328879,0.08653108,3135.7,3134.8,8.717]
[1641702329178,0.00625266,3135.6,3134.8,3.6644]
[1641702329479,0.08540423,3135.5,3134.8,3.6644]
[1641702329882,0.00511581,3135.4,3134.8,3.6644]
[1641702330083,0.07974,3135.3,3134.8,3.6644]
[1641702330279,0.08428739,3135.3,3134.8,3.6644]
[1641702330478,0.00397896,3135.2,3134.8,3.6644]
[1641702330679,0.79788,3135.0,3134.8,3.6644]
[1641702331045,0.00227369,3134.9,3134.8,3.6644]
[1641702331232,0.00227369,3134.9,3134.4,0.13819997]
[1641702331632,0.00170527,3134.8,3134.3,1.154]
[1641702332032,0.00113685,3134.7,3134.3,1.154]
[1641702332436,0.88134896,3135.2,3134.3,1.154]
[1641702332634,1.88134896,3135.2,3134.3,1.154]
[1641702332935,0.00341054,3135.1,3134.3,1.154]
[1641702333134,0.07939,3135.0,3134.3,1.154]
[1641702333434,0.00227369,3134.9,3134.3,1.154]
[1641702333834,0.7979,3134.7,3134.3,1.154]
[1641702334236,0.7979,3134.7,3134.0,10.01745351]
[1641702334436,0.7979,3134.7,3134.0,6.06315351]
[1641702334637,0.7979,3134.7,3134.1,0.00227369]
[1641702334872,0.7979,3134.7,3134.4,1.55069065]
[1641702335777,0.87756,3134.9,3134.5,2.22271504]
[1641702335972,0.79781,3134.9,3134.5,2.22271504]
[1641702336173,0.00170527,3134.8,3134.5,2.22271504]
[1641702336573,0.00113685,3134.7,3134.6,1.91366435]
[1641702336775,0.00113685,3134.7,3134.6,4.22263871]
[1641702336974,0.00568423,3134.7,3134.6,4.22263871]
[1641702337177,0.00568423,3134.7,3134.6,3.58442597]
[1641702337375,0.00568423,3134.7,3134.6,6.78442597]
[1641702338375,0.00568423,3134.7,3134.6,7.36827536]
[1641702339030,0.00568423,3134.7,3134.6,2.30897436]
[1641702339233,0.00568423,3134.7,3134.4,2.2051064]
[1641702339431,0.00568423,3134.7,3134.4,6.0064064]
[1641702341342,0.00568423,3134.7,3134.4,2.2051064]
[1641702341532,0.78647154,3134.8,3134.5,4.35]
[1641702341932,0.78647154,3134.8,3134.6,2.07494115]
[1641702342375,0.78647154,3134.8,3134.7,0.00454738]
[1641702342976,0.78647154,3134.8,3134.5,0.00568423]
[1641702345176,1.59565,3135.1,3134.6,2.1]
[1641702345479,1.59565,3135.1,3134.7,0.00454738]